[Event "December 12 Late 2023"]
[Site "https://www.chess.com"]
[Date "2023.12.12"]
[Round "9"]
[White "Chylewski, Patryk"]
[Black "Tokhirjonova, Gulrukhbegim"]
[Result "1-0"]
[Board "47"]
[TimeControl "180+1"]
[WhiteFideId "1186191"]
[BlackFideId "14203626"]
[WhiteElo "2514"]
[BlackElo "2637"]
[WhiteTeam "POL"]
[BlackTeam "USA"]
[WhiteClock "0:02:11"]
[BlackClock "0:01:41"]

1. Nf3 {[%clk 0:03:00]}  d5 {[%clk 0:02:55]} 2. d4 {[%clk 0:02:59]}  Nf6 {[%clk 0:02:55]} 3. c4 {[%clk 0:02:59]}  e6 {[%clk 0:02:55]} 4. Nc3 {[%clk 0:02:58]}  Be7 {[%clk 0:02:53]} 5. Bg5 {[%clk 0:02:57]}  h6 {[%clk 0:02:52]} 6. Bxf6 {[%clk 0:02:56]}  Bxf6 {[%clk 0:02:52]} 7. e3 {[%clk 0:02:56]}  c6 {[%clk 0:02:53]} 8. Qc2 {[%clk 0:02:56]}  Nd7 {[%clk 0:02:52]} 9. O-O-O {[%clk 0:02:56]}  dxc4 {[%clk 0:02:51]} 10. Bxc4 {[%clk 0:02:57]}  b5 {[%clk 0:02:51]} 11. Bd3 {[%clk 0:02:57]}  a5 {[%clk 0:02:51]} 12. Ne4 {[%clk 0:02:56]}  Bb7 {[%clk 0:02:43]} 13. Nd6+ {[%clk 0:02:55]}  Kf8 {[%clk 0:02:33]} 14. Nxb7 {[%clk 0:02:56]}  Qb6 {[%clk 0:02:34]} 15. Nc5 {[%clk 0:02:54]}  Qd8 {[%clk 0:02:30]} 16. Be4 {[%clk 0:02:45]}  Rc8 {[%clk 0:02:28]} 17. Ne5 {[%clk 0:02:39]}  Nb6 {[%clk 0:02:19]} 18. Kb1 {[%clk 0:02:20]}  Nd5 {[%clk 0:02:10]} 19. Ng6+ {[%clk 0:02:18]}  fxg6 {[%clk 0:01:53]} 20. Nxe6+ {[%clk 0:02:17]}  Ke7 {[%clk 0:01:54]} 21. Nxd8 {[%clk 0:02:16]}  Rhxd8 {[%clk 0:01:55]} 22. Bxd5 {[%clk 0:02:15]}  cxd5 {[%clk 0:01:55]} 23. Qxg6 {[%clk 0:02:14]}  a4 {[%clk 0:01:52]} 24. Rc1 {[%clk 0:02:14]}  b4 {[%clk 0:01:53]} 25. Rxc8 {[%clk 0:02:11]}  Rxc8 {[%clk 0:01:47]} 26. Rc1 {[%clk 0:02:12]}  Rxc1+ {[%clk 0:01:42]} 27. Kxc1 {[%clk 0:02:13]}  a3 {[%clk 0:01:42]} 28. bxa3 {[%clk 0:02:13]}  bxa3 {[%clk 0:01:41]} 29. Kc2 {[%clk 0:02:11]} 1-0

[Event "December 12 Late 2023"]
[Site "https://www.chess.com"]
[Date "2023.12.12"]
[Round "9"]
[White "Bazilius, Augustinas"]
[Black "Kleiman, Jake"]
[Result "1-0"]
[Board "48"]
[TimeControl "180+1"]
[WhiteFideId "12832251"]
[BlackFideId "2020041"]
[WhiteElo "2498"]
[BlackElo "2632"]
[WhiteTeam "LTU"]
[BlackTeam "USA"]
[WhiteClock "0:00:15"]
[BlackClock "0:00:23"]

1. d4 {[%clk 0:02:52]}  Nf6 {[%clk 0:02:59]} 2. c4 {[%clk 0:02:50]}  e6 {[%clk 0:02:55]} 3. Nf3 {[%clk 0:02:50]}  Bb4+ {[%clk 0:02:55]} 4. Bd2 {[%clk 0:02:50]}  Bxd2+ {[%clk 0:02:53]} 5. Qxd2 {[%clk 0:02:50]}  O-O {[%clk 0:02:54]} 6. g3 {[%clk 0:02:50]}  d6 {[%clk 0:02:54]} 7. Bg2 {[%clk 0:02:50]}  Qe7 {[%clk 0:02:55]} 8. O-O {[%clk 0:02:49]}  e5 {[%clk 0:02:55]} 9. Nc3 {[%clk 0:02:47]}  Nc6 {[%clk 0:02:54]} 10. e3 {[%clk 0:02:47]}  Bg4 {[%clk 0:02:53]} 11. Nd5 {[%clk 0:02:46]}  Qd8 {[%clk 0:02:50]} 12. b4 {[%clk 0:02:43]}  e4 {[%clk 0:02:28]} 13. Ng5 {[%clk 0:02:37]}  Nxd5 {[%clk 0:02:20]} 14. cxd5 {[%clk 0:02:38]}  Qxg5 {[%clk 0:02:18]} 15. dxc6 {[%clk 0:02:39]}  Bf3 {[%clk 0:02:07]} 16. h4 {[%clk 0:02:25]}  Qf5 {[%clk 0:02:03]} 17. cxb7 {[%clk 0:01:05]}  Rab8 {[%clk 0:02:02]} 18. Qc2 {[%clk 0:01:03]}  Rxb7 {[%clk 0:01:48]} 19. Bxf3 {[%clk 0:01:02]}  Qxf3 {[%clk 0:01:49]} 20. a4 {[%clk 0:00:55]}  Re8 {[%clk 0:01:33]} 21. Qc6 {[%clk 0:00:52]}  Reb8 {[%clk 0:01:32]} 22. b5 {[%clk 0:00:51]}  h5 {[%clk 0:01:22]} 23. Rfc1 {[%clk 0:00:46]}  Kh7 {[%clk 0:01:20]} 24. Qd5 {[%clk 0:00:44]}  f6 {[%clk 0:01:17]} 25. Rc6 {[%clk 0:00:44]}  Kg6 {[%clk 0:01:10]} 26. Rac1 {[%clk 0:00:43]}  Kh7 {[%clk 0:00:59]} 27. Rxc7 {[%clk 0:00:35]}  Rxc7 {[%clk 0:01:00]} 28. Rxc7 {[%clk 0:00:35]}  a6 {[%clk 0:01:01]} 29. Qf7 {[%clk 0:00:27]}  Qg4 {[%clk 0:00:48]} 30. bxa6 {[%clk 0:00:23]}  Rb1+ {[%clk 0:00:46]} 31. Kh2 {[%clk 0:00:24]}  Rb2 {[%clk 0:00:45]} 32. Qxg7+ {[%clk 0:00:14]}  Qxg7 {[%clk 0:00:45]} 33. Rxg7+ {[%clk 0:00:15]}  Kxg7 {[%clk 0:00:23]} 34. a7 {[%clk 0:00:15]} 1-0

[Event "December 12 Late 2023"]
[Site "https://www.chess.com"]
[Date "2023.12.12"]
[Round "9"]
[White "Ambartsumova, Karina"]
[Black "Rian, Kapriaga"]
[Result "1-0"]
[Board "49"]
[TimeControl "180+1"]
[WhiteFideId "4166299"]
[BlackFideId "7103263"]
[WhiteElo "2620"]
[BlackElo "2393"]
[WhiteTeam "RUS"]
[BlackTeam "INA"]
[WhiteClock "0:00:57"]
[BlackClock "0:00:13"]

1. d4 {[%clk 0:03:00]}  Nf6 {[%clk 0:02:56]} 2. c4 {[%clk 0:03:00]}  c5 {[%clk 0:02:52]} 3. d5 {[%clk 0:03:00]}  b5 {[%clk 0:02:51]} 4. cxb5 {[%clk 0:03:00]}  d6 {[%clk 0:02:48]} 5. Nc3 {[%clk 0:02:59]}  g6 {[%clk 0:02:47]} 6. Nf3 {[%clk 0:02:58]}  Bg7 {[%clk 0:02:46]} 7. g3 {[%clk 0:02:57]}  O-O {[%clk 0:02:45]} 8. Bg2 {[%clk 0:02:57]}  a6 {[%clk 0:02:45]} 9. b6 {[%clk 0:02:57]}  Nbd7 {[%clk 0:02:44]} 10. O-O {[%clk 0:02:55]}  Nxb6 {[%clk 0:02:44]} 11. e4 {[%clk 0:02:53]}  Bb7 {[%clk 0:02:41]} 12. Re1 {[%clk 0:02:46]}  Ng4 {[%clk 0:02:39]} 13. Bf4 {[%clk 0:02:40]}  Nd7 {[%clk 0:02:37]} 14. Qc2 {[%clk 0:02:11]}  Qa5 {[%clk 0:02:33]} 15. Nd2 {[%clk 0:02:04]}  Nge5 {[%clk 0:02:30]} 16. Be3 {[%clk 0:01:43]}  Qc7 {[%clk 0:02:14]} 17. h3 {[%clk 0:01:42]}  c4 {[%clk 0:02:10]} 18. Bf1 {[%clk 0:01:42]}  Nc5 {[%clk 0:01:55]} 19. Bxc4 {[%clk 0:01:42]}  Nxc4 {[%clk 0:01:50]} 20. Nxc4 {[%clk 0:01:43]}  Rfc8 {[%clk 0:01:49]} 21. b3 {[%clk 0:01:32]}  Bxc3 {[%clk 0:01:32]} 22. Qxc3 {[%clk 0:01:33]}  Nxe4 {[%clk 0:01:32]} 23. Qd4 {[%clk 0:01:33]}  Nf6 {[%clk 0:01:31]} 24. Nb6 {[%clk 0:01:33]}  Rab8 {[%clk 0:01:19]} 25. Rac1 {[%clk 0:01:25]}  Qd8 {[%clk 0:01:19]} 26. Nxc8 {[%clk 0:01:23]}  Rxc8 {[%clk 0:01:16]} 27. Rxc8 {[%clk 0:01:22]}  Qxc8 {[%clk 0:01:16]} 28. Bh6 {[%clk 0:01:16]}  Qxh3 {[%clk 0:01:10]} 29. Rxe7 {[%clk 0:01:01]}  Bxd5 {[%clk 0:00:58]} 30. Qxd5 {[%clk 0:00:57]}  Nxd5 {[%clk 0:00:13]} 31. Re8# {[%clk 0:00:57]} 1-0

[Event "December 12 Late 2023"]
[Site "https://www.chess.com"]
[Date "2023.12.12"]
[Round "9"]
[White "Garcia Almaguer, Juan Manuel"]
[Black "Aldokhin, Ivan"]
[Result "0-1"]
[Board "50"]
[TimeControl "180+1"]
[WhiteFideId "5110491"]
[BlackFideId "24115720"]
[WhiteElo "2494"]
[BlackElo "2682"]
[WhiteTeam "MEX"]
[BlackTeam "RUS"]
[WhiteClock "0:00:11"]
[BlackClock "0:00:22"]

1. e4 {[%clk 0:03:00]}  c5 {[%clk 0:03:00]} 2. Nf3 {[%clk 0:02:57]}  e6 {[%clk 0:03:00]} 3. d4 {[%clk 0:02:55]}  cxd4 {[%clk 0:03:01]} 4. Nxd4 {[%clk 0:02:56]}  a6 {[%clk 0:03:02]} 5. Nc3 {[%clk 0:02:54]}  Qc7 {[%clk 0:03:02]} 6. Be2 {[%clk 0:02:53]}  Nf6 {[%clk 0:03:01]} 7. a3 {[%clk 0:02:52]}  d6 {[%clk 0:02:59]} 8. Be3 {[%clk 0:02:48]}  b5 {[%clk 0:02:58]} 9. f4 {[%clk 0:02:42]}  Bb7 {[%clk 0:02:58]} 10. Bf3 {[%clk 0:02:42]}  Nbd7 {[%clk 0:02:59]} 11. Nb3 {[%clk 0:02:36]}  Be7 {[%clk 0:02:54]} 12. O-O {[%clk 0:02:33]}  Rc8 {[%clk 0:02:54]} 13. Qd2 {[%clk 0:02:33]}  Qb8 {[%clk 0:02:53]} 14. Qf2 {[%clk 0:02:33]}  Rxc3 {[%clk 0:02:52]} 15. bxc3 {[%clk 0:02:31]}  Nxe4 {[%clk 0:02:53]} 16. Bxe4 {[%clk 0:02:31]}  Bxe4 {[%clk 0:02:52]} 17. a4 {[%clk 0:02:23]}  Nf6 {[%clk 0:02:34]} 18. axb5 {[%clk 0:02:12]}  axb5 {[%clk 0:02:03]} 19. Qe2 {[%clk 0:01:56]}  h5 {[%clk 0:02:00]} 20. Nd4 {[%clk 0:01:49]}  O-O {[%clk 0:01:50]} 21. Bf2 {[%clk 0:01:42]}  Bd5 {[%clk 0:01:39]} 22. Nf5 {[%clk 0:01:13]}  exf5 {[%clk 0:01:22]} 23. Qxe7 {[%clk 0:01:12]}  Re8 {[%clk 0:01:21]} 24. Qa7 {[%clk 0:01:12]}  Qc8 {[%clk 0:01:20]} 25. Bd4 {[%clk 0:01:07]}  Ne4 {[%clk 0:01:14]} 26. Rae1 {[%clk 0:01:03]}  Re6 {[%clk 0:01:10]} 27. Re3 {[%clk 0:01:02]}  Rg6 {[%clk 0:00:58]} 28. g3 {[%clk 0:00:43]}  h4 {[%clk 0:00:57]} 29. Rff3 {[%clk 0:00:43]}  hxg3 {[%clk 0:00:47]} 30. Rxg3 {[%clk 0:00:43]}  Nxg3 {[%clk 0:00:43]} 31. Rxg3 {[%clk 0:00:40]}  Rxg3+ {[%clk 0:00:42]} 32. hxg3 {[%clk 0:00:41]}  Qe6 {[%clk 0:00:42]} 33. Kf2 {[%clk 0:00:33]}  Qe4 {[%clk 0:00:40]} 34. Qb8+ {[%clk 0:00:33]}  Kh7 {[%clk 0:00:40]} 35. Qxd6 {[%clk 0:00:33]}  Qxc2+ {[%clk 0:00:37]} 36. Ke3 {[%clk 0:00:30]}  Be4 {[%clk 0:00:34]} 37. Be5 {[%clk 0:00:11]}  Qg2 {[%clk 0:00:25]} 38. Kd4 {[%clk 0:00:11]}  Qf2# {[%clk 0:00:22]} 0-1

[Event "December 12 Late 2023"]
[Site "https://www.chess.com"]
[Date "2023.12.12"]
[Round "9"]
[White "Ladan, Nicholas"]
[Black "Golubev, Mikhail"]
[Result "0-1"]
[Board "55"]
[TimeControl "180+1"]
[WhiteFideId "30918855"]
[BlackFideId "14100983"]
[WhiteElo "2469"]
[BlackElo "2610"]
[WhiteTeam "USA"]
[BlackTeam "UKR"]
[WhiteClock "0:00:00"]
[BlackClock "0:00:34"]

1. d4 {[%clk 0:03:00]}  Nf6 {[%clk 0:02:59]} 2. Nf3 {[%clk 0:03:01]}  d6 {[%clk 0:02:59]} 3. Bf4 {[%clk 0:03:01]}  Nbd7 {[%clk 0:02:58]} 4. e3 {[%clk 0:03:01]}  Nh5 {[%clk 0:02:56]} 5. Nbd2 {[%clk 0:02:57]}  Nxf4 {[%clk 0:02:55]} 6. exf4 {[%clk 0:02:58]}  g6 {[%clk 0:02:51]} 7. Bc4 {[%clk 0:02:51]}  Nf6 {[%clk 0:02:39]} 8. Qe2 {[%clk 0:02:46]}  Bg7 {[%clk 0:02:37]} 9. O-O-O {[%clk 0:02:12]}  O-O {[%clk 0:02:36]} 10. h4 {[%clk 0:02:02]}  Bg4 {[%clk 0:02:34]} 11. Nf1 {[%clk 0:01:55]}  Qd7 {[%clk 0:02:30]} 12. Ne3 {[%clk 0:01:54]}  h5 {[%clk 0:02:19]} 13. Nxg4 {[%clk 0:01:52]}  Nxg4 {[%clk 0:02:19]} 14. Ng5 {[%clk 0:01:43]}  d5 {[%clk 0:02:12]} 15. Bd3 {[%clk 0:01:37]}  Bxd4 {[%clk 0:01:49]} 16. Bb5 {[%clk 0:01:22]}  c6 {[%clk 0:01:48]} 17. Rxd4 {[%clk 0:01:22]}  cxb5 {[%clk 0:01:47]} 18. Rhd1 {[%clk 0:01:21]}  Nf6 {[%clk 0:01:45]} 19. f5 {[%clk 0:01:02]}  Qxf5 {[%clk 0:01:37]} 20. Qxe7 {[%clk 0:01:01]}  Rac8 {[%clk 0:01:32]} 21. R1d2 {[%clk 0:00:55]}  Rce8 {[%clk 0:01:13]} 22. Qxb7 {[%clk 0:00:49]}  Re1+ {[%clk 0:01:12]} 23. Rd1 {[%clk 0:00:46]}  Qxf2 {[%clk 0:01:10]} 24. Rxe1 {[%clk 0:00:31]}  Qxe1+ {[%clk 0:01:09]} 25. Rd1 {[%clk 0:00:32]}  Qe3+ {[%clk 0:01:09]} 26. Kb1 {[%clk 0:00:31]}  Qe2 {[%clk 0:00:55]} 27. Rc1 {[%clk 0:00:22]}  Qxg2 {[%clk 0:00:54]} 28. Qxa7 {[%clk 0:00:17]}  Ne4 {[%clk 0:00:53]} 29. Nxe4 {[%clk 0:00:06]}  dxe4 {[%clk 0:00:54]} 30. Qe3 {[%clk 0:00:04]}  Qg4 {[%clk 0:00:47]} 31. c4 {[%clk 0:00:02]}  bxc4 {[%clk 0:00:44]} 32. Rxc4 {[%clk 0:00:03]}  Qxh4 {[%clk 0:00:40]} 33. Rxe4 {[%clk 0:00:02]}  Qh1+ {[%clk 0:00:39]} 34. Qe1 {[%clk 0:00:03]}  Qxe1+ {[%clk 0:00:38]} 35. Rxe1 {[%clk 0:00:04]}  f5 {[%clk 0:00:38]} 36. a4 {[%clk 0:00:04]}  f4 {[%clk 0:00:38]} 37. a5 {[%clk 0:00:04]}  f3 {[%clk 0:00:38]} 38. Ka2 {[%clk 0:00:03]}  g5 {[%clk 0:00:36]} 39. b4 {[%clk 0:00:03]}  g4 {[%clk 0:00:36]} 40. a6 {[%clk 0:00:03]}  f2 {[%clk 0:00:36]} 41. Rb1 {[%clk 0:00:02]}  g3 {[%clk 0:00:34]} 42. b5 {[%clk 0:00:00]}  g2 {[%clk 0:00:34]} 0-1

[Event "December 12 Late 2023"]
[Site "https://www.chess.com"]
[Date "2023.12.12"]
[Round "9"]
[White "Saravana, Krishnan P."]
[Black "Bogaudinov, Rushan"]
[Result "1-0"]
[Board "56"]
[TimeControl "180+1"]
[WhiteFideId "5018382"]
[BlackFideId "4129288"]
[WhiteElo "2607"]
[BlackElo "2472"]
[WhiteTeam "IND"]
[BlackTeam "RUS"]
[WhiteClock "0:00:38"]
[BlackClock "0:00:00"]

1. e4 {[%clk 0:02:57]}  e6 {[%clk 0:02:52]} 2. d4 {[%clk 0:02:56]}  d5 {[%clk 0:02:52]} 3. Nd2 {[%clk 0:02:57]}  c5 {[%clk 0:02:51]} 4. Ngf3 {[%clk 0:02:56]}  Nc6 {[%clk 0:02:50]} 5. exd5 {[%clk 0:02:52]}  exd5 {[%clk 0:02:49]} 6. Bb5 {[%clk 0:02:52]}  Nf6 {[%clk 0:02:47]} 7. O-O {[%clk 0:02:51]}  Be7 {[%clk 0:02:43]} 8. dxc5 {[%clk 0:02:51]}  O-O {[%clk 0:02:41]} 9. Nb3 {[%clk 0:02:46]}  Bg4 {[%clk 0:02:38]} 10. h3 {[%clk 0:02:46]}  Bh5 {[%clk 0:02:37]} 11. Be2 {[%clk 0:02:45]}  Ne4 {[%clk 0:02:27]} 12. Be3 {[%clk 0:02:43]}  a5 {[%clk 0:02:24]} 13. a4 {[%clk 0:02:42]}  Rc8 {[%clk 0:02:07]} 14. c3 {[%clk 0:02:40]}  Re8 {[%clk 0:02:03]} 15. Re1 {[%clk 0:02:30]}  Bxf3 {[%clk 0:01:36]} 16. Bxf3 {[%clk 0:02:28]}  Ne5 {[%clk 0:01:37]} 17. Bd4 {[%clk 0:02:03]}  Nxf3+ {[%clk 0:01:31]} 18. Qxf3 {[%clk 0:02:03]}  Nxc5 {[%clk 0:01:09]} 19. Bxc5 {[%clk 0:01:57]}  Bxc5 {[%clk 0:01:08]} 20. Rxe8+ {[%clk 0:01:57]}  Qxe8 {[%clk 0:01:09]} 21. Qxd5 {[%clk 0:01:56]}  b6 {[%clk 0:01:07]} 22. Nxc5 {[%clk 0:01:54]}  Rxc5 {[%clk 0:01:07]} 23. Qd4 {[%clk 0:01:51]}  h5 {[%clk 0:01:01]} 24. b4 {[%clk 0:01:50]}  axb4 {[%clk 0:01:01]} 25. cxb4 {[%clk 0:01:50]}  Rc6 {[%clk 0:00:59]} 26. b5 {[%clk 0:01:44]}  Re6 {[%clk 0:00:57]} 27. Qc3 {[%clk 0:01:33]}  g6 {[%clk 0:00:56]} 28. Rd1 {[%clk 0:01:28]}  Re4 {[%clk 0:00:43]} 29. a5 {[%clk 0:01:16]}  bxa5 {[%clk 0:00:35]} 30. Qxa5 {[%clk 0:01:15]}  Qe5 {[%clk 0:00:28]} 31. Rb1 {[%clk 0:01:02]}  h4 {[%clk 0:00:25]} 32. Qd2 {[%clk 0:01:00]}  Re2 {[%clk 0:00:23]} 33. Qd8+ {[%clk 0:00:59]}  Kg7 {[%clk 0:00:19]} 34. Qxh4 {[%clk 0:00:56]}  Qf5 {[%clk 0:00:15]} 35. Qd4+ {[%clk 0:00:53]}  Kh7 {[%clk 0:00:14]} 36. Rb4 {[%clk 0:00:45]}  Re1+ {[%clk 0:00:14]} 37. Kh2 {[%clk 0:00:45]}  Re2 {[%clk 0:00:10]} 38. b6 {[%clk 0:00:40]}  Rxf2 {[%clk 0:00:10]} 39. b7 {[%clk 0:00:40]}  g5 {[%clk 0:00:05]} 40. b8=Q {[%clk 0:00:38]}  Kg6 {[%clk 0:00:00]} 41. Qg8+ {[%clk 0:00:38]} 1-0

[Event "December 12 Late 2023"]
[Site "https://www.chess.com"]
[Date "2023.12.12"]
[Round "9"]
[White "Arnold, Ken"]
[Black "Przybylski, Wojciech"]
[Result "0-1"]
[Board "58"]
[TimeControl "180+1"]
[WhiteFideId "2056836"]
[BlackFideId "1117599"]
[WhiteElo "2459"]
[BlackElo "2569"]
[WhiteTeam "USA"]
[BlackTeam "POL"]
[WhiteClock "0:00:00"]
[BlackClock "0:00:03"]

1. d4 {[%clk 0:03:00]}  Nf6 {[%clk 0:02:59]} 2. Nf3 {[%clk 0:03:00]}  d5 {[%clk 0:02:58]} 3. g3 {[%clk 0:03:01]}  c6 {[%clk 0:02:58]} 4. Bg2 {[%clk 0:03:01]}  Bg4 {[%clk 0:02:59]} 5. O-O {[%clk 0:03:01]}  Nbd7 {[%clk 0:02:59]} 6. Nbd2 {[%clk 0:03:01]}  e6 {[%clk 0:02:59]} 7. a3 {[%clk 0:02:58]}  Be7 {[%clk 0:02:59]} 8. c4 {[%clk 0:02:58]}  O-O {[%clk 0:02:58]} 9. cxd5 {[%clk 0:02:54]}  exd5 {[%clk 0:02:58]} 10. Qc2 {[%clk 0:02:47]}  Bh5 {[%clk 0:02:55]} 11. b3 {[%clk 0:02:20]}  Re8 {[%clk 0:02:53]} 12. Bb2 {[%clk 0:02:19]}  Bg6 {[%clk 0:02:53]} 13. Qc1 {[%clk 0:02:16]}  h6 {[%clk 0:02:52]} 14. b4 {[%clk 0:02:13]}  Ne4 {[%clk 0:02:51]} 15. Nxe4 {[%clk 0:02:13]}  Bxe4 {[%clk 0:02:51]} 16. e3 {[%clk 0:02:08]}  Bd6 {[%clk 0:02:49]} 17. Nd2 {[%clk 0:02:06]}  Bxg2 {[%clk 0:02:48]} 18. Kxg2 {[%clk 0:02:06]}  a5 {[%clk 0:02:47]} 19. Bc3 {[%clk 0:02:04]}  a4 {[%clk 0:02:46]} 20. Qc2 {[%clk 0:02:01]}  Qf6 {[%clk 0:02:43]} 21. Rae1 {[%clk 0:02:00]}  h5 {[%clk 0:02:30]} 22. e4 {[%clk 0:01:40]}  Qg6 {[%clk 0:02:30]} 23. Qb1 {[%clk 0:01:28]}  dxe4 {[%clk 0:02:23]} 24. Nxe4 {[%clk 0:01:27]}  h4 {[%clk 0:02:21]} 25. Nc5 {[%clk 0:01:23]}  h3+ {[%clk 0:02:11]} 26. Kxh3 {[%clk 0:01:21]}  Qh5+ {[%clk 0:02:08]} 27. Kg2 {[%clk 0:01:20]}  Nf6 {[%clk 0:01:59]} 28. Qd3 {[%clk 0:01:08]}  b6 {[%clk 0:01:51]} 29. Ne4 {[%clk 0:01:03]}  Qd5 {[%clk 0:01:44]} 30. Qf3 {[%clk 0:01:03]}  Nd7 {[%clk 0:01:26]} 31. Re3 {[%clk 0:00:47]}  Bf8 {[%clk 0:01:18]} 32. Rfe1 {[%clk 0:00:45]}  Re6 {[%clk 0:01:14]} 33. h4 {[%clk 0:00:40]}  Rae8 {[%clk 0:01:08]} 34. Ng5 {[%clk 0:00:38]}  Rxe3 {[%clk 0:00:57]} 35. Qxd5 {[%clk 0:00:38]}  cxd5 {[%clk 0:00:54]} 36. Rxe3 {[%clk 0:00:32]}  Rc8 {[%clk 0:00:47]} 37. Nf3 {[%clk 0:00:24]}  f6 {[%clk 0:00:46]} 38. h5 {[%clk 0:00:23]}  Kf7 {[%clk 0:00:42]} 39. Nh4 {[%clk 0:00:23]}  b5 {[%clk 0:00:40]} 40. Ng6 {[%clk 0:00:22]}  Nb6 {[%clk 0:00:38]} 41. Rf3 {[%clk 0:00:19]}  Bd6 {[%clk 0:00:32]} 42. Bd2 {[%clk 0:00:19]}  Rc2 {[%clk 0:00:29]} 43. Bf4 {[%clk 0:00:18]}  Nc4 {[%clk 0:00:25]} 44. Bxd6 {[%clk 0:00:17]}  Nxd6 {[%clk 0:00:26]} 45. Re3 {[%clk 0:00:18]}  Nf5 {[%clk 0:00:24]} 46. Re1 {[%clk 0:00:12]}  Rc7 {[%clk 0:00:21]} 47. g4 {[%clk 0:00:12]}  Nxd4 {[%clk 0:00:20]} 48. Rd1 {[%clk 0:00:12]}  Rc4 {[%clk 0:00:20]} 49. Re1 {[%clk 0:00:11]}  Ne6 {[%clk 0:00:18]} 50. Kg3 {[%clk 0:00:09]}  Rc3+ {[%clk 0:00:17]} 51. Kh4 {[%clk 0:00:08]}  Rf3 {[%clk 0:00:14]} 52. Rd1 {[%clk 0:00:06]}  Ng5 {[%clk 0:00:12]} 53. Rh1 {[%clk 0:00:05]}  d4 {[%clk 0:00:12]} 54. h6 {[%clk 0:00:04]}  d3 {[%clk 0:00:06]} 55. h7 {[%clk 0:00:03]}  Nxh7 {[%clk 0:00:05]} 56. Kh5 {[%clk 0:00:02]}  Ng5 {[%clk 0:00:03]} 57. Nh8+ {[%clk 0:00:02]}  Ke6 {[%clk 0:00:02]} 58. Kg6 {[%clk 0:00:02]}  Rxf2 {[%clk 0:00:02]} 59. Re1+ {[%clk 0:00:01]}  Re2 {[%clk 0:00:02]} 60. Rd1 {[%clk 0:00:00]}  d2 {[%clk 0:00:03]} 0-1

[Event "December 12 Late 2023"]
[Site "https://www.chess.com"]
[Date "2023.12.12"]
[Round "9"]
[White "Bold, Andre"]
[Black "Ferreira, Vitor Hugo Vieira"]
[Result "0-1"]
[Board "61"]
[TimeControl "180+1"]
[WhiteFideId "16208471"]
[BlackFideId "2119765"]
[WhiteElo "2450"]
[BlackElo "2535"]
[WhiteTeam "GER"]
[BlackTeam "BRA"]
[WhiteClock "0:00:00"]
[BlackClock "0:00:58"]

1. Nf3 {[%clk 0:02:59]}  d5 {[%clk 0:02:58]} 2. g3 {[%clk 0:02:59]}  c6 {[%clk 0:02:56]} 3. Bg2 {[%clk 0:02:59]}  Bf5 {[%clk 0:02:56]} 4. O-O {[%clk 0:03:00]}  e6 {[%clk 0:02:57]} 5. d3 {[%clk 0:03:00]}  h6 {[%clk 0:02:57]} 6. Nbd2 {[%clk 0:02:58]}  Nf6 {[%clk 0:02:57]} 7. Re1 {[%clk 0:02:57]}  Be7 {[%clk 0:02:53]} 8. Ne5 {[%clk 0:02:48]}  O-O {[%clk 0:02:51]} 9. e4 {[%clk 0:02:46]}  Bh7 {[%clk 0:02:49]} 10. Qe2 {[%clk 0:02:37]}  Nbd7 {[%clk 0:02:49]} 11. Nxd7 {[%clk 0:02:37]}  Qxd7 {[%clk 0:02:46]} 12. e5 {[%clk 0:02:30]}  Ne8 {[%clk 0:02:46]} 13. Nf1 {[%clk 0:02:17]}  Nc7 {[%clk 0:02:45]} 14. h4 {[%clk 0:02:15]}  Rae8 {[%clk 0:02:44]} 15. Nh2 {[%clk 0:02:13]}  f6 {[%clk 0:02:45]} 16. Bf4 {[%clk 0:02:01]}  fxe5 {[%clk 0:02:43]} 17. Bxe5 {[%clk 0:02:00]}  Bf6 {[%clk 0:02:42]} 18. Ng4 {[%clk 0:01:55]}  Bf5 {[%clk 0:02:17]} 19. Bxf6 {[%clk 0:01:28]}  Bxg4 {[%clk 0:02:15]} 20. Qxg4 {[%clk 0:01:29]}  Rxf6 {[%clk 0:02:14]} 21. f4 {[%clk 0:01:23]}  Qd6 {[%clk 0:02:13]} 22. h5 {[%clk 0:01:19]}  Qc5+ {[%clk 0:02:09]} 23. Kh2 {[%clk 0:01:11]}  Qxc2 {[%clk 0:02:09]} 24. d4 {[%clk 0:00:55]}  Qf5 {[%clk 0:02:08]} 25. Bh3 {[%clk 0:00:48]}  Qxg4 {[%clk 0:02:06]} 26. Bxg4 {[%clk 0:00:49]}  Nb5 {[%clk 0:02:06]} 27. Rad1 {[%clk 0:00:46]}  Nd6 {[%clk 0:02:03]} 28. Re3 {[%clk 0:00:38]}  Nf5 {[%clk 0:02:02]} 29. Rb3 {[%clk 0:00:33]}  Re7 {[%clk 0:01:59]} 30. Kg2 {[%clk 0:00:21]}  g6 {[%clk 0:01:57]} 31. hxg6 {[%clk 0:00:20]}  Rxg6 {[%clk 0:01:53]} 32. Bxf5 {[%clk 0:00:20]}  exf5 {[%clk 0:01:52]} 33. Kf2 {[%clk 0:00:20]}  Rge6 {[%clk 0:01:49]} 34. Rd2 {[%clk 0:00:20]}  Kg7 {[%clk 0:01:46]} 35. a4 {[%clk 0:00:21]}  Kg6 {[%clk 0:01:47]} 36. Kf3 {[%clk 0:00:19]}  h5 {[%clk 0:01:46]} 37. a5 {[%clk 0:00:19]}  a6 {[%clk 0:01:46]} 38. Rb4 {[%clk 0:00:15]}  Re1 {[%clk 0:01:45]} 39. Rd3 {[%clk 0:00:14]}  Rf1+ {[%clk 0:01:42]} 40. Kg2 {[%clk 0:00:14]}  Rc1 {[%clk 0:01:37]} 41. Rd2 {[%clk 0:00:14]}  Rc4 {[%clk 0:01:36]} 42. Rxc4 {[%clk 0:00:12]}  dxc4 {[%clk 0:01:37]} 43. Kf3 {[%clk 0:00:12]}  Re1 {[%clk 0:01:34]} 44. d5 {[%clk 0:00:12]}  cxd5 {[%clk 0:01:32]} 45. Rxd5 {[%clk 0:00:13]}  Rb1 {[%clk 0:01:31]} 46. Rd6+ {[%clk 0:00:13]}  Kg7 {[%clk 0:01:32]} 47. Rb6 {[%clk 0:00:14]}  c3 {[%clk 0:01:31]} 48. Rxb7+ {[%clk 0:00:12]}  Kg8 {[%clk 0:01:29]} 49. Rb8+ {[%clk 0:00:12]}  Kf7 {[%clk 0:01:30]} 50. Rb7+ {[%clk 0:00:12]}  Ke6 {[%clk 0:01:30]} 51. Rb6+ {[%clk 0:00:06]}  Kd5 {[%clk 0:01:30]} 52. bxc3 {[%clk 0:00:07]}  Rxb6 {[%clk 0:01:27]} 53. axb6 {[%clk 0:00:07]}  Kc6 {[%clk 0:01:28]} 54. Ke3 {[%clk 0:00:06]}  Kxb6 {[%clk 0:01:29]} 55. Kd4 {[%clk 0:00:06]}  Kc6 {[%clk 0:01:27]} 56. Kc4 {[%clk 0:00:05]}  a5 {[%clk 0:01:25]} 57. Kd4 {[%clk 0:00:05]}  Kb5 {[%clk 0:01:21]} 58. Kd5 {[%clk 0:00:05]}  a4 {[%clk 0:01:22]} 59. c4+ {[%clk 0:00:05]}  Kb4 {[%clk 0:01:20]} 60. c5 {[%clk 0:00:06]}  a3 {[%clk 0:01:21]} 61. c6 {[%clk 0:00:06]}  a2 {[%clk 0:01:22]} 62. c7 {[%clk 0:00:07]}  a1=Q {[%clk 0:01:22]} 63. c8=Q {[%clk 0:00:08]}  Qd1+ {[%clk 0:01:20]} 64. Ke5 {[%clk 0:00:07]}  Qe1+ {[%clk 0:01:15]} 65. Kxf5 {[%clk 0:00:06]}  Qxg3 {[%clk 0:01:16]} 66. Qb7+ {[%clk 0:00:06]}  Kc4 {[%clk 0:01:15]} 67. Qe4+ {[%clk 0:00:06]}  Kc5 {[%clk 0:01:13]} 68. Qe5+ {[%clk 0:00:06]}  Kc6 {[%clk 0:01:13]} 69. Kf6 {[%clk 0:00:05]}  h4 {[%clk 0:01:12]} 70. Qe6+ {[%clk 0:00:04]}  Kc5 {[%clk 0:01:09]} 71. Qe5+ {[%clk 0:00:04]}  Kc4 {[%clk 0:01:10]} 72. Qe4+ {[%clk 0:00:05]}  Kc3 {[%clk 0:01:10]} 73. Qc6+ {[%clk 0:00:05]}  Kd2 {[%clk 0:01:10]} 74. Qd5+ {[%clk 0:00:05]}  Ke3 {[%clk 0:01:10]} 75. Qe5+ {[%clk 0:00:04]}  Kf3 {[%clk 0:01:09]} 76. f5 {[%clk 0:00:01]}  h3 {[%clk 0:01:01]} 77. Ke6 {[%clk 0:00:00]}  h2 {[%clk 0:00:58]} 0-1